{"text_format":"1","workbook":"xlsx","n_sheets":3,"sheets":["EvaluationForm","QualityStandard","Sheet1"],"not_rendered":{"charts":0,"images":0,"macros":1,"external_links":0,"defined_names":0,"comments":0,"pivot_tables":0},"unopened":[],"bounds":{"document_bytes":16777216,"sheet_cells":100000,"rows_first":2000,"rows_last":500,"rows_between":2000,"halvings":0,"cell_chars":16384,"cell_head_chars":4096},"cells_cut":0,"cells_raw":0,"read":"whole","date_system":"1900"}

{"sheet":"EvaluationForm","index":0,"n_rows":90,"n_cols":10,"rows_kept":90,"cut":false,"hidden":false,"merged":[]}
[null,null,"Người dịch:",null,"Người đánh giá:"]
[null,null,"Lĩnh vực:","Medical Health Examination","Ngày đánh giá:"]
[null,null,"Point:",{"$f":"SUM(I7:I201)/COUNT(I7:I201)","v":0}]
[null,null,"Evaluation:",{"$f":"IF(D3<=QualityStandard!E23,QualityStandard!A23,\nIF(D3<=QualityStandard!E24,QualityStandard!A24,\nIF(D3<=QualityStandard!E25,QualityStandard!A25,\nIF(D3<=QualityStandard!E26,QualityStandard!A26,QualityStandard!A27))))","v":"Excellent"}]
[]
["#","Match","Locked","Source","Translated","Bài mẫu","Mistake types","Severities","Point","Comment"]
[1,null,null,"BỆNH VIỆN ĐA KHOA HOÀN MỸ SÀI GÒN",null,null,null,null,{"$f":"_xlfn.IFNA(VLOOKUP(H7,QualityStandard!$A$5:$B$8,2,FALSE),0)","v":0}]
[2,null,null,"PHIẾU KẾT QUẢ X-QUANG KỸ THUẬT SỐ",null,null,null,null,{"$f":"_xlfn.IFNA(VLOOKUP(H8,QualityStandard!$A$5:$B$8,2,FALSE),0)","v":0}]
[3,null,null,"Bệnh nhân: Nguyễn Thị A",null,null,null,null,{"$f":"_xlfn.IFNA(VLOOKUP(H9,QualityStandard!$A$5:$B$8,2,FALSE),0)","v":0}]
[4,null,null,"Năm sinh: 1988",null,null,null,null,{"$f":"_xlfn.IFNA(VLOOKUP(H10,QualityStandard!$A$5:$B$8,2,FALSE),0)","v":0}]
[5,null,null,"Giới tính: Nữ",null,null,null,null,{"$f":"_xlfn.IFNA(VLOOKUP(H11,QualityStandard!$A$5:$B$8,2,FALSE),0)","v":0}]
[6,null,null,"Mã y tế: 160090933",null,null,null,null,{"$f":"_xlfn.IFNA(VLOOKUP(H12,QualityStandard!$A$5:$B$8,2,FALSE),0)","v":0}]
[7,null,null,"Phòng: 00 Giường: 00",null,null,null,null,{"$f":"_xlfn.IFNA(VLOOKUP(H13,QualityStandard!$A$5:$B$8,2,FALSE),0)","v":0}]
[8,null,null,"Ngày chỉ định: 05/06/2017",null,null,null,null,{"$f":"_xlfn.IFNA(VLOOKUP(H14,QualityStandard!$A$5:$B$8,2,FALSE),0)","v":0}]
[9,null,null,"Ngày chụp: 05/06/2017",null,null,null,null,{"$f":"_xlfn.IFNA(VLOOKUP(H15,QualityStandard!$A$5:$B$8,2,FALSE),0)","v":0}]
[10,null,null,"Chẩn đoán: Khám sức khỏe tổng quát",null,null,null,null,{"$f":"_xlfn.IFNA(VLOOKUP(H16,QualityStandard!$A$5:$B$8,2,FALSE),0)","v":0}]
[11,null,null,"Cơ quan chụp: X-quang số hóa 1 phim: Tim phổi thẳng",null,null,null,null,{"$f":"_xlfn.IFNA(VLOOKUP(H17,QualityStandard!$A$5:$B$8,2,FALSE),0)","v":0}]
[12,null,null,"Chiều thế chụp: THẲNG SAU TRƯỚC",null,null,null,null,{"$f":"_xlfn.IFNA(VLOOKUP(H18,QualityStandard!$A$5:$B$8,2,FALSE),0)","v":0}]
[13,null,null,"Thuốc cản quang",null,null,null,null,{"$f":"_xlfn.IFNA(VLOOKUP(H19,QualityStandard!$A$5:$B$8,2,FALSE),0)","v":0}]
[14,null,null,"MÔ TẢ",null,null,null,null,{"$f":"_xlfn.IFNA(VLOOKUP(H20,QualityStandard!$A$5:$B$8,2,FALSE),0)","v":0}]
[15,null,null,"Thành ngực: Bình thường",null,null,null,null,{"$f":"_xlfn.IFNA(VLOOKUP(H21,QualityStandard!$A$5:$B$8,2,FALSE),0)","v":0}]
[16,null,null,"Trung thất: Bóng tim không to. Cung động mạch chủ bình thường",null,null,null,null,{"$f":"_xlfn.IFNA(VLOOKUP(H22,QualityStandard!$A$5:$B$8,2,FALSE),0)","v":0}]
[17,null,null,"Nhu mô phổi: Chưa thấy tổn thương thực thể trên nhu mô hai phổi. Rốn phổi bình thường.",null,null,null,null,{"$f":"_xlfn.IFNA(VLOOKUP(H23,QualityStandard!$A$5:$B$8,2,FALSE),0)","v":0}]
[18,null,null,"Màng phổi: Bình thường",null,null,null,null,{"$f":"_xlfn.IFNA(VLOOKUP(H24,QualityStandard!$A$5:$B$8,2,FALSE),0)","v":0}]
[19,null,null,"Vòm hoành: Bình thường",null,null,null,null,{"$f":"_xlfn.IFNA(VLOOKUP(H25,QualityStandard!$A$5:$B$8,2,FALSE),0)","v":0}]
[20,null,null,"KẾT LUẬN: - CHƯA THẤY TỔN THƯƠNG THỰC THỂ TRÊN TIM PHỔI",null,null,null,null,{"$f":"_xlfn.IFNA(VLOOKUP(H26,QualityStandard!$A$5:$B$8,2,FALSE),0)","v":0}]
[21,null,null,"BS. NGUYỄN VĂN LỢI",null,null,null,null,{"$f":"_xlfn.IFNA(VLOOKUP(H27,QualityStandard!$A$5:$B$8,2,FALSE),0)","v":0}]
[22,null,null,"Bác sĩ chỉ định: Nguyễn Mạnh Hùng",null,null,null,null,{"$f":"_xlfn.IFNA(VLOOKUP(H28,QualityStandard!$A$5:$B$8,2,FALSE),0)","v":0}]
[23,null,null,null,null,null,null,null,{"$f":"_xlfn.IFNA(VLOOKUP(H29,QualityStandard!$A$5:$B$8,2,FALSE),0)","v":0}]
[24,null,null,null,null,null,null,null,{"$f":"_xlfn.IFNA(VLOOKUP(H30,QualityStandard!$A$5:$B$8,2,FALSE),0)","v":0}]
[25,null,null,null,null,null,null,null,{"$f":"_xlfn.IFNA(VLOOKUP(H31,QualityStandard!$A$5:$B$8,2,FALSE),0)","v":0}]
[26,null,null,null,null,null,null,null,{"$f":"_xlfn.IFNA(VLOOKUP(H32,QualityStandard!$A$5:$B$8,2,FALSE),0)","v":0}]
[27,null,null,null,null,null,null,null,{"$f":"_xlfn.IFNA(VLOOKUP(H33,QualityStandard!$A$5:$B$8,2,FALSE),0)","v":0}]
[28,null,null,null,null,null,null,null,{"$f":"_xlfn.IFNA(VLOOKUP(H34,QualityStandard!$A$5:$B$8,2,FALSE),0)","v":0}]
[29,null,null,null,null,null,null,null,{"$f":"_xlfn.IFNA(VLOOKUP(H35,QualityStandard!$A$5:$B$8,2,FALSE),0)","v":0}]
[30,null,null,null,null,null,null,null,{"$f":"_xlfn.IFNA(VLOOKUP(H36,QualityStandard!$A$5:$B$8,2,FALSE),0)","v":0}]
[31,null,null,null,null,null,null,null,{"$f":"_xlfn.IFNA(VLOOKUP(H37,QualityStandard!$A$5:$B$8,2,FALSE),0)","v":0}]
[32,null,null,null,null,null,null,null,{"$f":"_xlfn.IFNA(VLOOKUP(H38,QualityStandard!$A$5:$B$8,2,FALSE),0)","v":0}]
[33,null,null,null,null,null,null,null,{"$f":"_xlfn.IFNA(VLOOKUP(H39,QualityStandard!$A$5:$B$8,2,FALSE),0)","v":0}]
[34,null,null,null,null,null,null,null,{"$f":"_xlfn.IFNA(VLOOKUP(H40,QualityStandard!$A$5:$B$8,2,FALSE),0)","v":0}]
[35,null,null,null,null,null,null,null,{"$f":"_xlfn.IFNA(VLOOKUP(H41,QualityStandard!$A$5:$B$8,2,FALSE),0)","v":0}]
[36,null,null,null,null,null,null,null,{"$f":"_xlfn.IFNA(VLOOKUP(H42,QualityStandard!$A$5:$B$8,2,FALSE),0)","v":0}]
[37,null,null,null,null,null,null,null,{"$f":"_xlfn.IFNA(VLOOKUP(H43,QualityStandard!$A$5:$B$8,2,FALSE),0)","v":0}]
[38,null,null,null,null,null,null,null,{"$f":"_xlfn.IFNA(VLOOKUP(H44,QualityStandard!$A$5:$B$8,2,FALSE),0)","v":0}]
[39,null,null,null,null,null,null,null,{"$f":"_xlfn.IFNA(VLOOKUP(H45,QualityStandard!$A$5:$B$8,2,FALSE),0)","v":0}]
[40,null,null,null,null,null,null,null,{"$f":"_xlfn.IFNA(VLOOKUP(H46,QualityStandard!$A$5:$B$8,2,FALSE),0)","v":0}]
[41,null,null,null,null,null,null,null,{"$f":"_xlfn.IFNA(VLOOKUP(H47,QualityStandard!$A$5:$B$8,2,FALSE),0)","v":0}]
[42,null,null,null,null,null,null,null,{"$f":"_xlfn.IFNA(VLOOKUP(H48,QualityStandard!$A$5:$B$8,2,FALSE),0)","v":0}]
[43,null,null,null,null,null,null,null,{"$f":"_xlfn.IFNA(VLOOKUP(H49,QualityStandard!$A$5:$B$8,2,FALSE),0)","v":0}]
[44,null,null,null,null,null,null,null,{"$f":"_xlfn.IFNA(VLOOKUP(H50,QualityStandard!$A$5:$B$8,2,FALSE),0)","v":0}]
[45,null,null,null,null,null,null,null,{"$f":"_xlfn.IFNA(VLOOKUP(H51,QualityStandard!$A$5:$B$8,2,FALSE),0)","v":0}]
[46,null,null,null,null,null,null,null,{"$f":"_xlfn.IFNA(VLOOKUP(H52,QualityStandard!$A$5:$B$8,2,FALSE),0)","v":0}]
[47,null,null,null,null,null,null,null,{"$f":"_xlfn.IFNA(VLOOKUP(H53,QualityStandard!$A$5:$B$8,2,FALSE),0)","v":0}]
[48,null,null,null,null,null,null,null,{"$f":"_xlfn.IFNA(VLOOKUP(H54,QualityStandard!$A$5:$B$8,2,FALSE),0)","v":0}]
[49,null,null,null,null,null,null,null,{"$f":"_xlfn.IFNA(VLOOKUP(H55,QualityStandard!$A$5:$B$8,2,FALSE),0)","v":0}]
[50,null,null,null,null,null,null,null,{"$f":"_xlfn.IFNA(VLOOKUP(H56,QualityStandard!$A$5:$B$8,2,FALSE),0)","v":0}]
[51,null,null,null,null,null,null,null,{"$f":"_xlfn.IFNA(VLOOKUP(H57,QualityStandard!$A$5:$B$8,2,FALSE),0)","v":0}]
[52,null,null,null,null,null,null,null,{"$f":"_xlfn.IFNA(VLOOKUP(H58,QualityStandard!$A$5:$B$8,2,FALSE),0)","v":0}]
[53,null,null,null,null,null,null,null,{"$f":"_xlfn.IFNA(VLOOKUP(H59,QualityStandard!$A$5:$B$8,2,FALSE),0)","v":0}]
[54,null,null,null,null,null,null,null,{"$f":"_xlfn.IFNA(VLOOKUP(H60,QualityStandard!$A$5:$B$8,2,FALSE),0)","v":0}]
[55,null,null,null,null,null,null,null,{"$f":"_xlfn.IFNA(VLOOKUP(H61,QualityStandard!$A$5:$B$8,2,FALSE),0)","v":0}]
[56,null,null,null,null,null,null,null,{"$f":"_xlfn.IFNA(VLOOKUP(H62,QualityStandard!$A$5:$B$8,2,FALSE),0)","v":0}]
[57,null,null,null,null,null,null,null,{"$f":"_xlfn.IFNA(VLOOKUP(H63,QualityStandard!$A$5:$B$8,2,FALSE),0)","v":0}]
[58,null,null,null,null,null,null,null,{"$f":"_xlfn.IFNA(VLOOKUP(H64,QualityStandard!$A$5:$B$8,2,FALSE),0)","v":0}]
[59,null,null,null,null,null,null,null,{"$f":"_xlfn.IFNA(VLOOKUP(H65,QualityStandard!$A$5:$B$8,2,FALSE),0)","v":0}]
[60,null,null,null,null,null,null,null,{"$f":"_xlfn.IFNA(VLOOKUP(H66,QualityStandard!$A$5:$B$8,2,FALSE),0)","v":0}]
[61,null,null,null,null,null,null,null,{"$f":"_xlfn.IFNA(VLOOKUP(H67,QualityStandard!$A$5:$B$8,2,FALSE),0)","v":0}]
[62,null,null,null,null,null,null,null,{"$f":"_xlfn.IFNA(VLOOKUP(H68,QualityStandard!$A$5:$B$8,2,FALSE),0)","v":0}]
[63,null,null,null,null,null,null,null,{"$f":"_xlfn.IFNA(VLOOKUP(H69,QualityStandard!$A$5:$B$8,2,FALSE),0)","v":0}]
[64,null,null,null,null,null,null,null,{"$f":"_xlfn.IFNA(VLOOKUP(H70,QualityStandard!$A$5:$B$8,2,FALSE),0)","v":0}]
[65,null,null,null,null,null,null,null,{"$f":"_xlfn.IFNA(VLOOKUP(H71,QualityStandard!$A$5:$B$8,2,FALSE),0)","v":0}]
[66,null,null,null,null,null,null,null,{"$f":"_xlfn.IFNA(VLOOKUP(H72,QualityStandard!$A$5:$B$8,2,FALSE),0)","v":0}]
[67,null,null,null,null,null,null,null,{"$f":"_xlfn.IFNA(VLOOKUP(H73,QualityStandard!$A$5:$B$8,2,FALSE),0)","v":0}]
[68,null,null,null,null,null,null,null,{"$f":"_xlfn.IFNA(VLOOKUP(H74,QualityStandard!$A$5:$B$8,2,FALSE),0)","v":0}]
[69,null,null,null,null,null,null,null,{"$f":"_xlfn.IFNA(VLOOKUP(H75,QualityStandard!$A$5:$B$8,2,FALSE),0)","v":0}]
[70,null,null,null,null,null,null,null,{"$f":"_xlfn.IFNA(VLOOKUP(H76,QualityStandard!$A$5:$B$8,2,FALSE),0)","v":0}]
[71,null,null,null,null,null,null,null,{"$f":"_xlfn.IFNA(VLOOKUP(H77,QualityStandard!$A$5:$B$8,2,FALSE),0)","v":0}]
[72,null,null,null,null,null,null,null,{"$f":"_xlfn.IFNA(VLOOKUP(H78,QualityStandard!$A$5:$B$8,2,FALSE),0)","v":0}]
[73,null,null,null,null,null,null,null,{"$f":"_xlfn.IFNA(VLOOKUP(H79,QualityStandard!$A$5:$B$8,2,FALSE),0)","v":0}]
[74,null,null,null,null,null,null,null,{"$f":"_xlfn.IFNA(VLOOKUP(H80,QualityStandard!$A$5:$B$8,2,FALSE),0)","v":0}]
[75,null,null,null,null,null,null,null,{"$f":"_xlfn.IFNA(VLOOKUP(H81,QualityStandard!$A$5:$B$8,2,FALSE),0)","v":0}]
[76,null,null,null,null,null,null,null,{"$f":"_xlfn.IFNA(VLOOKUP(H82,QualityStandard!$A$5:$B$8,2,FALSE),0)","v":0}]
[77,null,null,null,null,null,null,null,{"$f":"_xlfn.IFNA(VLOOKUP(H83,QualityStandard!$A$5:$B$8,2,FALSE),0)","v":0}]
[78,null,null,null,null,null,null,null,{"$f":"_xlfn.IFNA(VLOOKUP(H84,QualityStandard!$A$5:$B$8,2,FALSE),0)","v":0}]
[79,null,null,null,null,null,null,null,{"$f":"_xlfn.IFNA(VLOOKUP(H85,QualityStandard!$A$5:$B$8,2,FALSE),0)","v":0}]
[80,null,null,null,null,null,null,null,{"$f":"_xlfn.IFNA(VLOOKUP(H86,QualityStandard!$A$5:$B$8,2,FALSE),0)","v":0}]
[81,null,null,null,null,null,null,null,{"$f":"_xlfn.IFNA(VLOOKUP(H87,QualityStandard!$A$5:$B$8,2,FALSE),0)","v":0}]
[82,null,null,null,null,null,null,null,{"$f":"_xlfn.IFNA(VLOOKUP(H88,QualityStandard!$A$5:$B$8,2,FALSE),0)","v":0}]
[83,null,null,null,null,null,null,null,{"$f":"_xlfn.IFNA(VLOOKUP(H89,QualityStandard!$A$5:$B$8,2,FALSE),0)","v":0}]
[84,null,null,null,null,null,null,null,{"$f":"_xlfn.IFNA(VLOOKUP(H90,QualityStandard!$A$5:$B$8,2,FALSE),0)","v":0}]

{"sheet":"QualityStandard","index":1,"n_rows":27,"n_cols":5,"rows_kept":27,"cut":false,"hidden":false,"merged":[[2,0,2,2],[9,0,9,1],[20,0,20,2]]}
["Quality standard"]
[]
["Mistake severities"]
["Name","Score","Description"]
["Non-scoring",0]
["Minor",1]
["Major",5]
["Critical",10]
[]
["Mistake types"]
["Name","Description"]
["Accuracy",null,"Minor","Major","Critical"]
["Grammar",null,"Minor","Major","Critical"]
["Miscellaneous",null,"Minor","Major"]
["Punctuation",null,"Minor","Major"]
["Spelling",null,null,"Major","Critical"]
["Style",null,"Minor","Major"]
["Terminology",null,"Minor","Major","Critical"]
[]
[]
["Mark scale",null,null,null,"Tính số này càng cao càng chất lượng"]
["Mark name","Score from (>=)","Score to (<)","coefficient =",50]
["Excellent",1,7,{"$f":"B23/$E$22","v":0.02},{"$f":"C23/$E$22","v":0.14000000000000001}]
["Good",8,15,{"$f":"B24/$E$22","v":0.16},{"$f":"C24/$E$22","v":0.3}]
["Satisfactory",16,25,0.32,0.5]
["Unsatisfactory",26,40,0.52,0.8]
["Catastrophic Fail",41,null,0.82]

{"sheet":"Sheet1","index":2,"n_rows":0,"n_cols":0,"rows_kept":0,"cut":false,"hidden":false,"merged":[]}